fUSD/lending_fUSD_20240528
["ID","MTS","AMOUNT","RATE_DAILY","PERIOD"]
[328100626,1716858634186,-150.0,0.00026466,2]
[328100627,1716858634196,-152.08130216,0.00026531,2]
[328100628,1716858634205,-154.23507296,0.00026611,2]
[328100629,1716858634214,-154.52979958,0.00026686,2]
[328100630,1716858634223,-1261.89158966,0.00026686,2]
[328100631,1716858634235,-2211.6319081,0.00026686,2]
[328100632,1716858634251,-280.85203042,0.00026686,2]
[328100635,1716858634602,-363.2425254,0.00026686,2]
[328100636,1716858634614,-946.60826906,0.00026686,2]
[328100637,1716858634625,-2140.72487849,0.00026686,2]
[328100638,1716858634636,-1738.23403079,0.00026686,2]
[328100639,1716858634647,-1325.14524,0.00026686,2]
[328100640,1716858634658,-289.3455407,0.00026686,2]
[328100642,1716858638645,-472.80608482,0.00024,2]
[328100643,1716858638655,-3734.5238043,0.00026686,2]
[328100644,1716858638667,-3280.6014,0.00026686,2]
[328100645,1716858638678,-5793.90021976,0.00026686,2]
[328100646,1716858638688,-467.8027,0.00026686,2]
[328100647,1716858638697,-3963.6683,0.00026686,2]
[328100648,1716858638706,-17031.08234161,0.00026686,2]
[328100649,1716858638718,-2587.16999792,0.00026686,2]
[328100650,1716858638729,-2415.94032559,0.00026686,2]
[328100653,1716858642013,-72250.20703488,0.00026686,2]
[328100654,1716858642022,-20000.0,0.00026693,2]
[328100655,1716858642032,-519.082,0.00026695,2]
[328100656,1716858642041,-497.8323,0.00026695,2]
[328100657,1716858642051,-4794.9166,0.00026695,2]
[328100658,1716858642061,-1000.0,0.00026698,2]
[328100659,1716858642071,-2500.0,0.00026698,2]
[328100660,1716858642086,-1087.1161,0.00026699,2]
[328100661,1716858642095,-500.0,0.00026699,2]
[328100662,1716858642105,-2874.689,0.00026699,2]
[328100663,1716858642115,-3118.3,0.00026699,2]
[328100664,1716858642126,-7500.0,0.00026699,2]
[328100665,1716858642135,-31293.1683,0.00026699,2]
[328100666,1716858642145,-322.87108846,0.000267,2]
[328100667,1716858642156,-341.3672,0.00026713,2]
[328100668,1716858642168,-154.27497005,0.00026724,2]
[328100669,1716858642178,-179.27167517,0.0002675,2]
[328100670,1716858642187,-162.0217594,0.00026761,2]
[328100671,1716858642197,-1498.79664066,0.00026785,2]
[328100672,1716858642207,-1554.8451249,0.00026786,2]
[328100673,1716858642216,-6103.8711906,0.00026786,2]
[328100674,1716858642225,-12266.0004299,0.00026786,2]
[328100675,1716858642234,-1225.8277637,0.00026797,2]
[328100676,1716858642244,-155.29916495,0.00026797,4]
[328100677,1716858642254,-224.24509749,0.00026798,2]
[328100678,1716858642263,-341.62190208,0.00026798,7]
[328100679,1716858642275,-4658.37809792,0.00026798,7]
[328100680,1716858642284,-283.72371629,0.00026798,2]
[328100681,1716858642293,-614.19569904,0.00026798,2]
[328100682,1716858642303,-854.94112293,0.00026798,2]
[328100683,1716858642318,-8291.92339892,0.00026798,2]
[328100684,1716858642329,-215.29162921,0.00026798,2]
[328100685,1716858642338,-411.11648053,0.00026799,2]
[328100686,1716858642347,-8341.97686424,0.00026799,2]
[328100687,1716858642358,-9417.0797708,0.00026799,2]
[328100688,1716858642377,-3503.25443429,0.00026799,2]
[328100689,1716858642389,-1050.51565051,0.00026799,2]
[328100690,1716858642400,-461.48668347,0.00026799,2]
[328100691,1716858642411,-549.80271798,0.00026799,2]
[328100692,1716858642422,-1360.25990168,0.00026799,2]
[328100693,1716858642433,-665.63401908,0.00026799,2]
[328100694,1716858642444,-2091.91512,0.00026799,2]
[328100695,1716858642455,-1048.582763,0.00026799,2]
[328100696,1716858642470,-23601.92592453,0.00026799,2]
[328100703,1716858644326,-6245.03715167,0.00026798,2]
[328100704,1716858644338,-208.37659574,0.00026799,2]
[328100705,1716858644348,-5879.33171453,0.00026799,2]
[328100706,1716858644358,-299.04252939,0.000268,2]
[328100707,1716858644367,-22511.02475718,0.000268,2]
[328100708,1716858644413,-6627.86862074,0.000268,2]
[328100709,1716858644426,-9339.48784231,0.000268,2]
[328100711,1716858644438,-974.31579601,0.000268,2]
[328100715,1716858647917,-535.13745953,0.00017259,2]
[328100716,1716858647929,-495.69461277,0.00026699,2]
[328100717,1716858648022,-504.30538723,0.00026699,2]
[328100718,1716858648032,-155.0,0.00026798,2]
[328100719,1716858648042,-198.413408,0.00026798,2]
[328100720,1716858648052,-213.43290026,0.00026798,2]
[328100721,1716858648062,-32.93402319,0.00026799,2]
[328100722,1716858648077,-122.06597681,0.00026799,2]
[328100723,1716858648092,-230.90859573,0.00026799,2]
[328100724,1716858648102,-291.72973925,0.000268,2]
[328100733,1716859832032,-1206.79205888,0.00013969,2]
[328100734,1716859832042,-295.75272591,0.00013971,2]
[328100751,1716859837916,-262.65011809,0.00013971,2]
[328100754,1716859837928,-527.3426415,0.00013971,2]
[328100776,1716859840664,-491.15843653,0.00013971,2]
[328100778,1716859840675,-1535.34582434,0.00013972,2]
[328100781,1716859840685,-160.78,0.00013973,2]
[328100783,1716859840695,-159.04,0.00013973,2]
[328100784,1716859840704,-529.70294517,0.00017259,2]
[328100785,1716859840715,-200.0,0.00017807,2]
[328100786,1716859840724,-1324.31,0.00017808,2]
[328100787,1716859840733,-154.52979958,0.000179,2]
[328100788,1716859840743,-1000.0,0.00018,2]
[328100789,1716859840753,-2132.57891825,0.00018098,2]
[328100790,1716859840763,-2189.31486008,0.00018099,2]
[328100791,1716859840773,-112131.42124489,0.000181,2]
[328100792,1716859840786,-424.40087838,0.000181,2]
[328100793,1716859841570,-3896.57759999,0.000181,2]
[328100815,1716859843546,-2453.30564562,0.000181,2]
[328100838,1716859847657,-644.05,0.000181,2]
[328100839,1716859847669,-605.50432414,0.000181,2]
[328100840,1716859847681,-186119.16809361,0.000181,2]
[328100841,1716859847692,-1138.59999553,0.000181,2]
[328100842,1716859847703,-1938.11087065,0.000181,2]
[328100843,1716859847714,-295.12565298,0.000181,2]
[328100844,1716859847724,-491.92205385,0.000181,2]
[328100845,1716859847736,-994.19092379,0.000181,2]
[328100846,1716859847747,-3237.067,0.000181,2]
[328100847,1716859847758,-12840.82856525,0.000181,2]
[328100848,1716859847770,-351.22370167,0.000181,2]
[328100849,1716859847783,-769.05650803,0.000181,2]
[328100850,1716859847793,-335.25000385,0.000181,2]
[328100851,1716859847962,-285.86354147,0.000181,2]
[328100854,1716859847973,-1900.443,0.000181,2]
[328100856,1716859847984,-1957.22733055,0.000181,2]
[328100877,1716860102718,164.07449306,0.000285,120]
[328100878,1716860237116,-155.0,0.00013661,2]
[328100879,1716860237143,-517.03487054,0.00013661,2]
[328100880,1716860237166,-1897.83949895,0.00013662,2]
[328100881,1716860237194,-428.81754475,0.00013663,2]
[328100882,1716860237217,-34111.84215084,0.00013664,2]
[328100883,1716860237238,-2305.46593492,0.00013664,2]
[328100892,1716860840115,-242.13596432,0.00013642,2]
[328100901,1716861031926,-161.18636921,0.00013542,2]
[328100903,1716861031938,-666.01771424,0.00013641,2]
[328100919,1716861032203,-1231.82178471,0.00013641,2]
[328100920,1716861032213,-1361.43772127,0.00013642,2]
[328100921,1716861032222,-155.0,0.00013642,2]
[328100922,1716861032232,-150.0,0.00013644,2]
[328100923,1716861032242,-429.86126131,0.00013663,2]
[328100924,1716861032251,-716.6022444,0.00013664,2]
[328100925,1716861032263,-679.85104576,0.00013664,2]
[328100926,1716861032276,-14083.41208514,0.00013664,2]
[328100927,1716861032286,-20429.83965932,0.00013664,2]
[328100928,1716861034624,-2438.22539095,0.00013664,2]
[328100933,1716861039867,-2567.0,0.00013664,2]
[328100934,1716861039880,-8471.0,0.00013664,2]
[328100935,1716861039892,-3195.21607603,0.00013664,2]
[328100936,1716861039904,-4038.88889286,0.00013664,2]
[328100937,1716861039913,-155.30248565,0.00013664,2]
[328100938,1716861039923,-27239.69622507,0.00013666,2]
[328100939,1716861039935,-4826.31267729,0.00013666,2]
[328100940,1716861039944,-155.25755156,0.00013969,2]
[328100941,1716861039954,-499.99,0.00013969,2]
[328100942,1716861039964,-327.24897837,0.0001397,2]
[328100943,1716861039980,-163.30872553,0.0001397,2]
[328100944,1716861039991,-1656.47,0.0001397,2]
[328100945,1716861040000,-170.32,0.00013973,2]
[328100946,1716861040011,-162.33,0.00013973,2]
[328100947,1716861040022,-8751.2116032,0.00013973,2]
[328100948,1716861040034,-1248.7783968,0.00013973,2]
[328100949,1716861040043,-326.17676728,0.00015,2]
[328100950,1716861040054,-1896.98843292,0.00017225,2]
[328100951,1716861040066,-1876.900965,0.00017225,2]
[328100952,1716861040077,-304.1235,0.00017225,2]
[328100953,1716861040089,-4457.39473505,0.00017225,2]
[328100954,1716861040106,-150.0,0.00017691,2]
[328100955,1716861040116,-3000.0,0.0001792,2]
[328100956,1716861040125,-1557.07223387,0.00018,2]
[328100957,1716861040134,-1044.17747107,0.000181,2]
[328100958,1716861040146,-616.58588304,0.000181,2]
[328100960,1716861040156,-500.0,0.000185,2]
[328100962,1716861040167,-3885.07287193,0.000192,2]
[328100964,1716861040176,-646.03949962,0.00019696,2]
[328100966,1716861040186,-2083.7320486,0.00019697,2]
[328100968,1716861040196,-800.03,0.00019835,2]
[328100970,1716861040206,-3000.0,0.0002042,2]
[328100972,1716861040217,-243.65,0.00021046,2]
[328100974,1716861040227,-200.0,0.00021391,2]
[328100976,1716861040238,-250.0,0.00021639,2]
[328100978,1716861040248,-15311.04,0.0002191,2]
[328100980,1716861040259,-227.81,0.00021918,2]
[328100982,1716861040269,-250.0,0.00021986,2]
[328100984,1716861040280,-250.0,0.00022064,2]
[328100986,1716861040290,-243.65,0.00022098,2]
[328100988,1716861040300,-800.03,0.00022099,2]
[328100990,1716861040311,-164.06212881,0.00022398,2]
[328100992,1716861040320,-330.24,0.00022398,2]
[328100994,1716861040330,-151.71,0.00022398,2]
[328100996,1716861040340,-210.6,0.00022419,2]
[328100998,1716861040358,-548.09302787,0.000228,2]
[328101000,1716861040369,-3000.0,0.0002292,2]
[328101002,1716861040379,-460.6,0.00022928,2]
[328101004,1716861040389,-243.65,0.0002315,2]
[328101006,1716861040400,-865.45,0.00023945,2]
[328101008,1716861040410,-415.49,0.00023945,2]
[328101011,1716861040420,-433.45814983,0.00024,2]
[328101013,1716861040431,-472.91332031,0.00024,2]
[328101015,1716861040440,-280.0,0.000242,2]
[328101018,1716861040456,-243.65,0.00024203,2]
[328101023,1716861040471,-180.0,0.0002423,2]
[328101026,1716861040481,-800.03,0.00024363,2]
[328101029,1716861040491,-1000.0,0.000244,2]
[328101032,1716861040500,-154.148045,0.00024437,2]
[328101035,1716861040511,-153.41127466,0.00024526,2]
[328101038,1716861040520,-153.41127466,0.00024859,2]
[328101040,1716861040531,-1961.89640379,0.00024888,2]
[328101042,1716861040541,-21094.02721511,0.00024898,2]
[328101044,1716861040550,-674.68115684,0.00024923,2]
[328101046,1716861040560,-21094.02721503,0.00024946,2]
[328101048,1716861040570,-224.19152914,0.00025,2]
[328101050,1716861040580,-5000.0,0.00025,7]
[328101052,1716861040590,-155.0,0.00025,2]
[328101055,1716861040605,-155.0,0.00025,2]
[328101057,1716861040614,-1050.0,0.00025,2]
[328101059,1716861040624,-7568.91968758,0.00025,2]
[328101061,1716861040633,-931.18360437,0.00025,2]
[328101062,1716861040643,-1000.0,0.00025,2]
[328101063,1716861040653,-300.0,0.00025,7]
[328101064,1716861040663,-1000.0,0.00025,2]
[328101065,1716861040673,-150.84006812,0.00025042,2]
[328101066,1716861040683,-150.84006812,0.00025076,2]
[328101067,1716861040693,-674.68115684,0.00025078,2]
[328101068,1716861040703,-151.71,0.00025138,2]
[328101069,1716861040714,-330.24,0.00025198,2]
[328101070,1716861040724,-243.65,0.00025255,2]
[328101071,1716861040734,-154.96114256,0.00025271,2]
[328101072,1716861040744,-150.84006812,0.00025282,2]
[328101073,1716861040755,-3095.0,0.000253,3]
[328101074,1716861040764,-150.84006812,0.00025326,2]
[328101075,1716861040774,-3000.0,0.0002542,2]
[328101076,1716861040784,-150.84006812,0.00025469,2]
[328101077,1716861040795,-155.09088213,0.00025548,2]
[328101078,1716861040804,-1000.0,0.0002556,2]
[328101079,1716861040814,-2500.0,0.0002556,2]
[328101080,1716861040824,-154.01663236,0.00025635,2]
[328101081,1716861040833,-159.7439144,0.0002564,2]
[328101082,1716861040846,-153.41127466,0.0002565,2]
[328101083,1716861040856,-674.68115684,0.00025663,2]
[328101084,1716861040865,-154.148045,0.00025679,2]
[328101085,1716861040875,-150.84006812,0.00025713,2]
[328101086,1716861040884,-153.41127466,0.00025736,2]
[328101087,1716861040894,-154.148045,0.00025746,2]
[328101088,1716861040903,-674.68115684,0.00025767,2]
[328101089,1716861040912,-156.32230669,0.00025773,2]
[328101090,1716861040922,-460.6,0.00025794,2]
[328101091,1716861040931,-153.41127466,0.00025837,2]
[328101092,1716861040941,-153.41127466,0.00025896,2]
[328101093,1716861040950,-166.66666666,0.00025957,2]
[328101094,1716861040960,-20999.48905113,0.00025993,2]
[328101095,1716861040979,-94.5381639,0.00025993,2]
[328101096,1716861040989,-160.65247078,0.00026071,2]
[328101097,1716861040998,-154.14804502,0.00026087,2]
[328101098,1716861041008,-630.59684944,0.00026093,2]
[328101099,1716861041021,-802.19819903,0.00026093,2]
[328101100,1716861041034,-1129.29085153,0.00026093,2]
[328101101,1716861041044,-674.68115684,0.00026147,2]
[328101102,1716861041054,-674.68115684,0.00026167,2]
[328101103,1716861041064,-153.41127466,0.00026229,2]
[328101104,1716861041078,-157.50453778,0.00026248,2]
[328101105,1716861041089,-160.65247078,0.00026283,2]
[328101106,1716861041102,-150.84006812,0.00026303,2]
[328101107,1716861041112,-150.84006812,0.00026403,2]
[328101108,1716861041121,-275.9512,0.0002643,2]
[328101109,1716861041130,-150.84006812,0.00026456,2]
[328101110,1716861041140,-150.84006812,0.00026479,2]
[328101111,1716861041150,-674.68115684,0.00026525,2]
[328101112,1716861041160,-153.8532462,0.00026531,2]
[328101113,1716861041170,-200.0,0.00026586,2]
[328101114,1716861041180,-500.0,0.00026586,2]
[328101115,1716861041190,-200.0,0.00026586,2]
[328101116,1716861041200,-528.0,0.0002659,2]
[328101117,1716861041210,-756.47692845,0.0002659,2]
[328101118,1716861041219,-815.6143,0.0002659,2]
[328101119,1716861041229,-7500.0,0.0002659,2]
[328101120,1716861041239,-391.0,0.0002662,2]
[328101121,1716861041248,-800.03,0.00026627,2]
[328101122,1716861041258,-153.41127466,0.0002664,2]
[328101123,1716861041268,-323.120779,0.0002669,2]
[328101124,1716861041278,-936.0759,0.0002669,2]
[328101125,1716861041288,-47429.511,0.0002669,2]
[328101126,1716861041297,-500.0,0.0002669,2]
[328101127,1716861041307,-165.466236,0.00026718,7]
[328101128,1716861041317,-178.781336,0.00026718,7]
[328101129,1716861041326,-181.535676,0.00026718,7]
[328101130,1716861041336,-151.0,0.00026718,7]
[328101131,1716861041350,-154.66007,0.00026718,7]
[328101132,1716861041360,-153.41127466,0.0002675,2]
[328101133,1716861041370,-674.68115684,0.00026779,2]
[328101134,1716861041379,-103447.47423882,0.0002679,2]
[328101135,1716861041388,-151.457151,0.0002679,7]
[328101136,1716861041397,-151.0,0.0002679,7]
[328101137,1716861041406,-152.624273,0.0002679,7]
[328101138,1716861041416,-291.319545,0.0002679,7]
[328101139,1716861041425,-157.220656,0.0002679,7]
[328101140,1716861041435,-154.786203,0.0002679,7]
[328101141,1716861041444,-169.058481,0.0002679,7]
[328101142,1716861041454,-151.0,0.0002679,7]
[328101143,1716861041463,-198.31556,0.0002679,7]
[328101144,1716861041474,-183.056642,0.0002679,7]
[328101145,1716861041483,-155.06045,0.0002679,7]
[328101146,1716861041493,-152.63615,0.0002679,7]
[328101147,1716861041503,-152.057577,0.0002679,7]
[328101148,1716861041513,-151.0,0.0002679,7]
[328101149,1716861041522,-151.0,0.0002679,7]
[328101150,1716861041531,-155.542775,0.0002679,7]
[328101151,1716861041541,-151.0,0.0002679,7]
[328101152,1716861041551,-152.246491,0.0002679,7]
[328101153,1716861041560,-151.0,0.0002679,7]
[328101154,1716861041570,-151.890539,0.0002679,7]
[328101155,1716861041580,-168.743606,0.0002679,7]
[328101156,1716861041589,-151.0,0.0002679,7]
[328101157,1716861041605,-157.280785,0.0002679,7]
[328101158,1716861041614,-157.280785,0.0002679,7]
[328101159,1716861041624,-156.224247,0.0002679,7]
[328101160,1716861041634,-154.80369,0.0002679,7]
[328101161,1716861041644,-151.381726,0.0002679,7]
[328101162,1716861041653,-151.0,0.0002679,7]
[328101163,1716861041663,-151.0,0.0002679,7]
[328101164,1716861041673,-155.682719,0.0002679,7]
[328101165,1716861041683,-154.545698,0.0002679,7]
[328101166,1716861041692,-241.836083,0.0002679,7]
[328101167,1716861041702,-241.836083,0.0002679,7]
[328101168,1716861041711,-154.717562,0.0002679,7]
[328101169,1716861041723,-172.159126,0.0002679,7]
[328101170,1716861041732,-151.0,0.0002679,7]
[328101171,1716861041742,-156.512234,0.00026791,7]
[328101172,1716861041752,-885.7565003,0.00026791,2]
[328101173,1716861041761,-1339.3696264,0.00026791,2]
[328101174,1716861041770,-14775.1611396,0.00026791,2]
[328101175,1716861041780,-5522.9202244,0.00026791,2]
[328101176,1716861041790,-1764.6191721,0.00026791,2]
[328101177,1716861041799,-2946.48230216,0.00026791,2]
[328101180,1716861045292,-238.45095235,0.00013642,2]
[328101181,1716861045303,-184.18567544,0.00013662,2]
[328101182,1716861045315,-280.16615886,0.00013662,2]
[328101183,1716861045327,-757.45058583,0.00013662,2]
[328101184,1716861045343,-171.85320662,0.00013662,2]
[328101185,1716861045356,-2246.01079483,0.00013663,2]
[328101186,1716861045366,-1241.61890468,0.00013663,2]
[328101187,1716861045376,-4327.1700133,0.00013663,2]
[328101188,1716861045388,-8775.85526705,0.00013663,2]
[328101189,1716861045398,-1183.36644884,0.00013663,2]
[328101190,1716861045408,-367.26787027,0.00013663,2]
[328101191,1716861045417,-631.85759821,0.00018,2]
[328101192,1716861045428,-2008.11686738,0.00026789,2]
[328101193,1716861045438,-604.666925,0.0002679,7]
[328101194,1716861045448,-151.0,0.0002679,7]
[328101195,1716861045459,-604.666925,0.0002679,7]
[328101196,1716861045469,-29937.89305564,0.00026791,2]
[328101197,1716861045480,-238.43858843,0.00026797,2]
[328101198,1716861045489,-1577.91907871,0.00026798,2]
[328101199,1716861045499,-258.79795646,0.00026798,2]
[328101200,1716861045508,-5278.19112866,0.00026798,2]
[328101201,1716861045518,-4236.3198775,0.00026798,2]
[328101203,1716861045528,-410.74423217,0.00026798,2]
[328101204,1716861045537,-435.93251974,0.00026798,2]
[328101205,1716861045547,-5879.33171453,0.00026799,2]
[328101206,1716861045556,-183.98245559,0.00026799,2]
[328101207,1716861045565,-151.0,0.00026799,7]
[328101208,1716861045575,-151.0,0.00026799,7]
[328101209,1716861045584,-151.0,0.00026799,7]
[328101210,1716861045594,-151.0,0.00026799,7]
[328101211,1716861045607,-151.0,0.00026799,7]
[328101212,1716861045617,-151.0,0.00026799,7]
[328101213,1716861045626,-157.280785,0.00026799,7]
[328101214,1716861045635,-157.280785,0.00026799,7]
[328101215,1716861045645,-151.0,0.00026799,7]
[328101216,1716861045655,-241.836083,0.00026799,7]
[328101217,1716861045662,-241.836083,0.00026799,7]
[328101218,1716861045669,-151.0,0.00026799,7]
[328101219,1716861045677,-604.666925,0.00026799,7]
[328101220,1716861045685,-2525.63565248,0.000268,2]
[328101221,1716861045696,-23886.17018571,0.000268,2]
[328101222,1716861045705,-281.07575007,0.000268,2]
[328101223,1716861045714,-1808.045685,0.000268,2]
[328101224,1716861045723,-399.94065048,0.000268,2]
[328101225,1716861045733,-17528.71573993,0.000268,2]
[328101226,1716861045744,-344.0,0.000268,2]
[328101227,1716861045754,-704.0389849,0.000268,7]
[328101228,1716861045764,-1508.504935,0.000268,2]
[328101229,1716861045773,-150.0,0.000268,5]
[328101230,1716861045785,-916.12577535,0.00026809,2]
[328101231,1716861045797,-277.3345,0.00026809,2]
[328101234,1716861045831,-89156.91870115,0.00026809,2]
[328101236,1716861045841,-151.697843,0.00026809,7]
[328101238,1716861045855,-155.074513,0.00026809,7]
[328101240,1716861045866,-155.845154,0.00026809,7]
[328101243,1716861045877,-151.0,0.00026809,7]
[328101244,1716861045887,-151.0,0.00026809,7]
[328101246,1716861045897,-151.0,0.00026809,7]
[328101248,1716861045907,-157.280785,0.00026809,7]
[328101250,1716861045917,-157.280785,0.00026809,7]
[328101252,1716861045928,-151.0,0.00026809,7]
[328101254,1716861045938,-241.836083,0.00026809,7]
[328101256,1716861045948,-241.836083,0.00026809,7]
[328101258,1716861045958,-151.0,0.00026809,7]
[328101260,1716861045968,-604.666925,0.00026809,7]
[328101262,1716861045979,-674.68115684,0.00026882,2]
[328101263,1716861045989,-674.68115684,0.00026979,2]
[328101264,1716861046004,-4018.79216408,0.00027,2]
[328101265,1716861046014,-832.0508297,0.00027,2]
[328101266,1716861046025,-1100.0,0.00027,2]
[328101267,1716861046036,-150.84006812,0.00027002,2]
[328101268,1716861046045,-21094.02721503,0.00027039,2]
[328101269,1716861046055,-153.41127466,0.00027077,2]
[328101270,1716861046066,-153.41127466,0.0002709,2]
[328101271,1716861046077,-747.22403344,0.00027121,2]
[328101272,1716861046087,-155.0,0.00027121,2]
[328101273,1716861046096,-154.97876819,0.00027243,2]
[328101274,1716861046108,-150.0,0.00027288,2]
[328101275,1716861046117,-150.0,0.000273,5]
[328101276,1716861046127,-805.74854483,0.0002739,2]
[328101277,1716861046136,-589.56,0.00027397,10]
[328101278,1716861046145,-920.49,0.00027397,10]
[328101279,1716861046154,-767.08,0.00027397,10]
[328101280,1716861046163,-421.43,0.00027397,2]
[328101281,1716861046173,-323.12077895,0.00027426,2]
[328101282,1716861046182,-674.68115684,0.00027456,2]
[328101283,1716861046191,-189.20976146,0.000275,2]
[328101284,1716861046200,-944.9,0.000275,2]
[328101285,1716861046210,-711.0,0.000275,2]
[328101286,1716861046219,-1000.0,0.000275,2]
[328101287,1716861046228,-449.0,0.000275,2]
[328101288,1716861046238,-756.47692845,0.00027551,2]
[328101289,1716861046247,-674.68115684,0.00027575,2]
[328101290,1716861046256,-674.68115684,0.00027647,2]
[328101291,1716861046266,-674.68115684,0.00027686,2]
[328101292,1716861046275,-160.65247078,0.0002773,2]
[328101293,1716861046284,-150.0,0.000278,5]
[328101294,1716861046294,-150.84006812,0.00027804,2]
[328101295,1716861046303,-159.7439144,0.00027847,2]
[328101296,1716861046312,-150.84006812,0.00027859,2]
[328101297,1716861046322,-151.71,0.00027878,2]
[328101298,1716861046331,-1014.032,0.00027916,2]
[328101299,1716861046340,-417.026,0.00027916,2]
[328101300,1716861046354,-387.0,0.00027916,2]
[328101301,1716861046363,-1225.0,0.00027916,2]
[328101302,1716861046374,-1645.0,0.00027916,2]
[328101303,1716861046383,-469.948,0.00027916,2]
[328101304,1716861046392,-1265.0,0.00027916,2]
[328101305,1716861046401,-616.807,0.00027916,2]
[328101306,1716861046410,-218.583,0.00027916,2]
[328101307,1716861046419,-191.317,0.00027916,2]
[328101308,1716861046428,-2398.0,0.00027916,2]
[328101309,1716861046438,-445.0,0.00027916,2]
[328101310,1716861046447,-808.0,0.00027916,2]
[328101311,1716861046456,-1651.0,0.00027916,2]
[328101312,1716861046465,-157.366,0.00027916,2]
[328101313,1716861046474,-225.0,0.00027916,2]
[328101314,1716861046483,-1137.0,0.00027916,2]
[328101315,1716861046493,-549.609,0.00027916,2]
[328101316,1716861046502,-3166.0,0.00027916,2]
[328101317,1716861046512,-5140.0,0.00027916,2]
[328101318,1716861046521,-4958.0,0.00027916,2]
[328101319,1716861046530,-37944.0,0.00027916,2]
[328101320,1716861046539,-5766.0,0.00027916,2]
[328101321,1716861046548,-1467.0,0.00027916,2]
[328101322,1716861046557,-299.715,0.00027916,2]
[328101323,1716861046567,-152.388,0.00027916,2]
[328101324,1716861046575,-150.0,0.00027916,2]
[328101325,1716861046585,-151.0,0.00027916,7]
[328101326,1716861046594,-151.0,0.00027916,7]
[328101327,1716861046609,-151.0,0.00027916,7]
[328101328,1716861046618,-157.280785,0.00027916,7]
[328101329,1716861046627,-157.280785,0.00027916,7]
[328101330,1716861046635,-172.951276,0.00027916,7]
[328101331,1716861046644,-241.836083,0.00027916,7]
[328101332,1716861046653,-241.836083,0.00027916,7]
[328101333,1716861046663,-3000.0,0.0002792,2]
[328101334,1716861046671,-330.24,0.00027998,2]
[328101335,1716861046681,-2805.60963112,0.00028,2]
[328101336,1716861046691,-155.0,0.00028,2]
[328101337,1716861046700,-310.41283763,0.00028,6]
[328101338,1716861046709,-151.22,0.00028075,2]
[328101339,1716861046719,-156.486079,0.00028085,7]
[328101340,1716861046729,-604.666925,0.00028085,7]
[328101341,1716861046738,-21094.02721503,0.00028085,2]
[328101342,1716861046747,-153.41127466,0.00028088,2]
[328101343,1716861046756,-399.595788,0.000281,2]
[328101344,1716861046766,-399.595788,0.000281,2]
[328101345,1716861046775,-323.12077895,0.00028163,2]
[328101346,1716861046785,-300.0,0.000282,2]
[328101347,1716861046794,-166.66666666,0.00028245,2]
[328101348,1716861046803,-150.0,0.000283,5]
[328101349,1716861046812,-159.7439144,0.00028349,2]
[328101350,1716861046821,-153.66454341,0.00028402,2]
[328101351,1716861046830,-156.3223067,0.00028432,2]
[328101352,1716861046839,-2000.0,0.000285,2]
[328101353,1716861046850,-200.0,0.000285,2]
[328101354,1716861046859,-1200.76193844,0.000285,2]
[328101355,1716861046869,-257.41048708,0.000285,2]
[328101356,1716861046878,-2000.0,0.000285,2]
[328101357,1716861046887,-200.0,0.000285,2]
[328101358,1716861046896,-2000.0,0.000285,2]
[328101359,1716861046906,-200.0,0.000285,2]
[328101360,1716861046915,-200.0,0.000285,2]
[328101361,1716861046924,-756.47692845,0.00028512,2]
[328101362,1716861046933,-151.0,0.00028532,7]
[328101363,1716861046942,-151.0,0.00028532,7]
[328101364,1716861046951,-156.464762,0.00028532,7]
[328101365,1716861046960,-157.280785,0.00028532,7]
[328101366,1716861046970,-157.280785,0.00028532,7]
[328101367,1716861046983,-308.33704378,0.00028571,2]
[328101368,1716861046993,-460.6,0.0002866,2]
[328101369,1716861047002,-1058.31,0.0002874,2]